[Event "NJSK 2023 Jeugd C"]
[Site "Almelo, Netherlands"]
[Date "2023.05.04"]
[Round "7.8"]
[White "Fallaux, Storm"]
[Black "Kazarjan, Gachatur"]
[Result "1/2-1/2"]
[TimeControl "90min/40moves + 30min + 30sec/move"]
[WhiteElo "1650"]
[BlackElo "1872"]

1. e4 {[%clk 01:30:58]} {[%emt 00:00:01]} c5 {[%clk 01:30:57]} {[%emt
00:00:04]} 2. Nf3 {[%clk 01:31:23]} {[%emt 00:00:04]} d6 {[%clk 01:31:21]}
{[%emt 00:00:06]} 3. d4 {[%clk 01:31:49]} {[%emt 00:00:04]} cxd4 {[%clk
01:31:48]} {[%emt 00:00:04]} 4. Nxd4 {[%clk 01:32:16]} {[%emt 00:00:02]} Nf6
{[%clk 01:32:11]} {[%emt 00:00:08]} 5. Nc3 {[%clk 01:32:43]} {[%emt 00:00:04]}
Bd7 {[%clk 01:32:35]} {[%emt 00:00:06]} 6. f3 {[%clk 01:32:00]} {[%emt
00:01:13]} h5 {[%clk 01:32:39]} {[%emt 00:00:25]} 7. Be3 {[%clk 01:32:14]}
{[%emt 00:00:16]} a6 {[%clk 01:32:41]} {[%emt 00:00:30]} 8. h3 {[%clk
01:31:29]} {[%emt 00:01:13]} Nc6 {[%clk 01:30:18]} {[%emt 00:02:53]} 9. Qd2
{[%clk 01:31:18]} {[%emt 00:00:41]} Rc8 {[%clk 01:30:02]} {[%emt 00:00:46]} 10.
Rh2 {[%clk 01:31:01]} {[%emt 00:00:47]} h4 {[%clk 01:30:22]} {[%emt 00:00:11]}
11. a3 {[%clk 01:29:09]} {[%emt 00:02:21]} Ne5 {[%clk 01:27:47]} {[%emt
00:03:05]} 12. O-O-O {[%clk 01:28:22]} {[%emt 00:01:16]} Nc4 {[%clk 01:27:42]}
{[%emt 00:00:36]} 13. Bxc4 {[%clk 01:28:10]} {[%emt 00:00:43]} Rxc4 {[%clk
01:28:06]} {[%emt 00:00:06]} 14. Bg5 {[%clk 01:20:10]} {[%emt 00:08:30]} Qa5
{[%clk 01:24:28]} {[%emt 00:04:07]} 15. Nb3 {[%clk 01:18:30]} {[%emt 00:02:11]}
Qd8 {[%clk 01:22:27]} {[%emt 00:02:28]} 16. Bxf6 {[%clk 01:15:29]} {[%emt
00:03:34]} gxf6 {[%clk 01:22:28]} {[%emt 00:00:29]} 17. Kb1 {[%clk 01:15:51]}
{[%emt 00:00:09]} b5 {[%clk 01:21:52]} {[%emt 00:01:06]} 18. Nd5 {[%clk
01:13:10]} {[%emt 00:03:11]} Be6 {[%clk 01:18:49]} {[%emt 00:03:33]} 19. Rhh1
{[%clk 01:06:48]} {[%emt 00:06:52]} Bh6 {[%clk 01:15:45]} {[%emt 00:03:33]} 20.
Qd3 {[%clk 01:04:54]} {[%emt 00:02:24]} Bxd5 {[%clk 01:15:04]} {[%emt
00:01:12]} 21. exd5 {[%clk 01:04:41]} {[%emt 00:00:43]} Bf4 {[%clk 01:14:31]}
{[%emt 00:01:03]} 22. Rhe1 {[%clk 01:04:31]} {[%emt 00:00:40]} Rh5 {[%clk
01:12:41]} {[%emt 00:02:19]} 23. Re4 {[%clk 00:47:54]} {[%emt 00:17:07]} Rxe4
{[%clk 01:07:05]} {[%emt 00:06:06]} 24. Qxe4 {[%clk 00:47:10]} {[%emt
00:01:15]} Bg3 {[%clk 01:06:25]} {[%emt 00:01:09]} 25. Nd4 {[%clk 00:46:46]}
{[%emt 00:00:55]} Qd7 {[%clk 00:51:35]} {[%emt 00:15:19]} 26. f4 {[%clk
00:39:36]} {[%emt 00:07:40]} Kf8 {[%clk 00:50:11]} {[%emt 00:01:55]} 27. Qf3
{[%clk 00:37:35]} {[%emt 00:02:31]} Rh7 {[%clk 00:50:01]} {[%emt 00:00:38]} 28.
Rd2 {[%clk 00:29:53]} {[%emt 00:08:13]} f5 {[%clk 00:26:48]} {[%emt 00:23:43]}
29. Re2 {[%clk 00:25:56]} {[%emt 00:04:28]} Rh6 {[%clk 00:25:01]} {[%emt
00:02:16]} 30. Qd3 {[%clk 00:23:11]} {[%emt 00:03:15]} Rf6 {[%clk 00:24:50]}
{[%emt 00:00:41]} 31. Qf3 {[%clk 00:23:02]} {[%emt 00:00:38]} 1/2-1/2

[Event "NJSK 2023 Jeugd C"]
[Site "Almelo, Netherlands"]
[Date "2023.05.04"]
[Round "7.9"]
[White "Thijssen, Freek"]
[Black "Lopes, Samuel"]
[Result "1/2-1/2"]
[TimeControl "90min/40moves + 30min + 30sec/move"]
[WhiteElo "1644"]
[BlackElo "1865"]

1. e4 {[%clk 01:30:57]} {[%emt 00:00:02]} c5 {[%clk 01:30:54]} {[%emt
00:00:07]} 2. Nf3 {[%clk 01:31:21]} {[%emt 00:00:06]} d6 {[%clk 01:31:13]}
{[%emt 00:00:11]} 3. d4 {[%clk 01:31:47]} {[%emt 00:00:04]} cxd4 {[%clk
01:31:37]} {[%emt 00:00:06]} 4. Nxd4 {[%clk 01:32:08]} {[%emt 00:00:09]} Nf6
{[%clk 01:31:57]} {[%emt 00:00:10]} 5. Nc3 {[%clk 01:32:31]} {[%emt 00:00:08]}
Nc6 {[%clk 01:32:18]} {[%emt 00:00:08]} 6. f3 {[%clk 01:32:21]} {[%emt
00:00:39]} e5 {[%clk 01:32:37]} {[%emt 00:00:12]} 7. Nb3 {[%clk 01:32:40]}
{[%emt 00:00:11]} Be6 {[%clk 01:32:49]} {[%emt 00:00:18]} 8. Be3 {[%clk
01:31:54]} {[%emt 00:01:16]} d5 {[%clk 01:32:30]} {[%emt 00:00:49]} 9. exd5
{[%clk 01:29:31]} {[%emt 00:02:53]} Nxd5 {[%clk 01:31:03]} {[%emt 00:01:57]} 10.
Nxd5 {[%clk 01:28:01]} {[%emt 00:02:00]} Qxd5 {[%clk 01:31:07]} {[%emt
00:00:25]} 11. Qxd5 {[%clk 01:25:32]} {[%emt 00:02:59]} Bxd5 {[%clk 01:31:25]}
{[%emt 00:00:11]} 12. O-O-O {[%clk 01:23:54]} {[%emt 00:02:09]} O-O-O {[%clk
01:30:53]} {[%emt 00:01:02]} 13. Bd3 {[%clk 01:18:58]} {[%emt 00:05:25]} g6
{[%clk 01:28:03]} {[%emt 00:03:21]} 14. Be4 {[%clk 01:11:04]} {[%emt 00:08:24]}
1/2-1/2

[Event "NJSK 2023 Jeugd C"]
[Site "Almelo, Netherlands"]
[Date "2023.05.04"]
[Round "7.10"]
[White "Vijver, Jonathan"]
[Black "Ambrona Navarro, Himar"]
[Result "0-1"]
[TimeControl "90min/40moves + 30min + 30sec/move"]
[WhiteElo "1781"]
[BlackElo "1834"]

1. e4 {[%clk 01:30:56]} {[%emt 00:00:03]} c6 {[%clk 01:30:46]} {[%emt
00:00:13]} 2. d4 {[%clk 01:31:24]} {[%emt 00:00:04]} d5 {[%clk 01:31:09]}
{[%emt 00:00:07]} 3. Nc3 {[%clk 01:31:50]} {[%emt 00:00:04]} dxe4 {[%clk
01:31:24]} {[%emt 00:00:12]} 4. Nxe4 {[%clk 01:32:16]} {[%emt 00:00:06]} Nf6
{[%clk 01:31:45]} {[%emt 00:00:09]} 5. Nxf6+ {[%emt 00:00:07]} exf6 {[%clk
01:32:02]} {[%emt 00:00:07]} 6. c3 {[%clk 01:33:03]} {[%emt 00:00:14]} Bd6
{[%clk 01:32:10]} {[%emt 00:00:19]} 7. Bd3 {[%clk 01:33:25]} {[%emt 00:00:10]}
O-O {[%clk 01:32:30]} {[%emt 00:00:09]} 8. Ne2 {[%clk 01:33:47]} {[%emt
00:00:09]} Re8 {[%clk 01:32:31]} {[%emt 00:00:28]} 9. O-O {[%clk 01:34:13]}
{[%emt 00:00:05]} Be6 {[%clk 01:32:31]} {[%emt 00:00:29]} 10. Be3 {[%clk
01:33:24]} {[%emt 00:01:21]} Nd7 {[%clk 01:32:03]} {[%emt 00:00:56]} 11. Ng3
{[%clk 01:33:14]} {[%emt 00:00:40]} Qc7 {[%clk 01:30:59]} {[%emt 00:01:32]} 12.
Re1 {[%clk 01:25:07]} {[%emt 00:08:39]} Rad8 {[%clk 01:27:26]} {[%emt
00:03:51]} 13. Qc2 {[%clk 01:22:40]} {[%emt 00:03:09]} g6 {[%clk 01:25:50]}
{[%emt 00:02:02]} 14. Rad1 {[%clk 01:14:04]} {[%emt 00:09:10]} c5 {[%clk
01:22:43]} {[%emt 00:03:36]} 15. d5 {[%clk 01:04:56]} {[%emt 00:09:39]} Bxd5
{[%clk 01:14:18]} {[%emt 00:08:53]} 16. Bxg6 {[%clk 01:04:41]} {[%emt
00:00:47]} hxg6 {[%clk 01:14:31]} {[%emt 00:00:16]} 17. Rxd5 {[%clk 01:05:01]}
{[%emt 00:00:11]} Nb6 {[%clk 01:13:11]} {[%emt 00:01:48]} 18. Rdd1 {[%clk
01:01:12]} {[%emt 00:04:21]} Nc4 {[%clk 01:11:21]} {[%emt 00:02:10]} 19. Bc1
{[%clk 01:00:42]} {[%emt 00:01:11]} Kg7 {[%clk 01:07:58]} {[%emt 00:03:50]} 20.
Rxe8 {[%clk 00:58:02]} {[%emt 00:03:14]} Rxe8 {[%clk 01:08:10]} {[%emt
00:00:16]} 21. b3 {[%clk 00:57:35]} {[%emt 00:00:57]} Bxg3 {[%clk 01:04:30]}
{[%emt 00:04:08]} 22. hxg3 {[%clk 00:57:11]} {[%emt 00:00:56]} Ne5 {[%clk
01:04:32]} {[%emt 00:00:27]} 23. Bf4 {[%clk 00:56:25]} {[%emt 00:01:16]} g5
{[%clk 00:58:43]} {[%emt 00:06:22]} 24. Bxe5 {[%clk 00:55:58]} {[%emt
00:00:56]} Qxe5 {[%clk 00:58:55]} {[%emt 00:00:17]} 25. Qd3 {[%clk 00:54:33]}
{[%emt 00:01:56]} b6 {[%clk 00:58:07]} {[%emt 00:01:18]} 26. c4 {[%clk
00:49:43]} {[%emt 00:05:21]} Qe2 {[%clk 00:57:12]} {[%emt 00:01:23]} 27. Qxe2
{[%clk 00:49:03]} {[%emt 00:01:10]} Rxe2 {[%clk 00:57:32]} {[%emt 00:00:10]} 28.
a4 {[%clk 00:49:26]} {[%emt 00:00:09]} Rb2 {[%clk 00:57:23]} {[%emt 00:00:38]}
29. Rd3 {[%clk 00:49:52]} {[%emt 00:00:05]} Kg6 {[%clk 00:57:07]} {[%emt
00:00:46]} 30. g4 {[%clk 00:50:02]} {[%emt 00:00:20]} f5 {[%clk 00:56:21]}
{[%emt 00:01:16]} 31. gxf5+ {[%clk 00:50:11]} {[%emt 00:00:20]} Kxf5 {[%clk
00:56:26]} {[%emt 00:00:26]} 32. Re3 {[%clk 00:49:24]} {[%emt 00:01:17]} f6
{[%clk 00:55:39]} {[%emt 00:01:17]} 33. g3 {[%clk 00:48:04]} {[%emt 00:01:50]}
Kg4 {[%clk 00:55:41]} {[%emt 00:00:27]} 34. Kg2 {[%clk 00:48:14]} {[%emt
00:00:21]} f5 {[%clk 00:55:42]} {[%emt 00:00:29]} 35. Rd3 {[%clk 00:48:34]}
{[%emt 00:00:10]} f4 {[%clk 00:55:50]} {[%emt 00:00:20]} 36. gxf4 {[%clk
00:48:46]} {[%emt 00:00:19]} gxf4 {[%clk 00:56:14]} {[%emt 00:00:06]} 37. Rc3
{[%clk 00:48:01]} {[%emt 00:01:15]} Kf5 {[%clk 00:56:34]} {[%emt 00:00:10]} 38.
Rd3 {[%clk 00:48:03]} {[%emt 00:00:28]} Ke4 {[%clk 00:56:44]} {[%emt 00:00:19]}
39. Rh3 {[%clk 00:48:27]} {[%emt 00:00:05]} Rd2 {[%clk 00:56:26]} {[%emt
00:00:49]} 40. Rh7 {[%clk 00:47:00]} {[%emt 00:01:57]} Rd3 {[%clk 00:56:40]}
{[%emt 00:00:16]} 41. Re7+ {[%clk 00:47:11]} {[%emt 00:00:20]} Kd4 {[%clk
00:56:44]} {[%emt 00:00:25]} 42. Rxa7 {[%clk 00:47:25]} {[%emt 00:00:16]} Rxb3
{[%clk 00:57:03]} {[%emt 00:00:11]} 43. a5 {[%clk 00:47:43]} {[%emt 00:00:14]}
bxa5 {[%clk 00:57:07]} {[%emt 00:00:25]} 44. Rxa5 {[%clk 00:48:09]} {[%emt
00:00:04]} Kxc4 {[%clk 00:57:26]} {[%emt 00:00:10]} 45. Ra8 {[%clk 00:48:34]}
{[%emt 00:00:05]} Rb4 {[%clk 00:56:21]} {[%emt 00:01:35]} 46. Kf3 {[%clk
00:47:51]} {[%emt 00:01:13]} Kb3 {[%clk 00:56:38]} {[%emt 00:00:12]} 47. Rc8
{[%clk 00:48:16]} {[%emt 00:00:06]} c4 {[%clk 00:56:42]} {[%emt 00:00:27]} 48.
Kxf4 {[%clk 00:48:32]} {[%emt 00:00:14]} c3+ {[%clk 00:57:04]} {[%emt
00:00:07]} 49. Kf5 {[%clk 00:48:59]} {[%emt 00:00:03]} c2 {[%clk 00:57:07]}
{[%emt 00:00:27]} 50. f4 {[%clk 00:49:26]} {[%emt 00:00:04]} Rc4 {[%clk
00:57:27]} {[%emt 00:00:10]} 51. Rb8+ {[%clk 00:49:51]} {[%emt 00:00:05]} Kc3
{[%clk 00:57:51]} {[%emt 00:00:05]} 0-1

[Event "NJSK 2023 Jeugd C"]
[Site "Almelo, Netherlands"]
[Date "2023.05.04"]
[Round "7.11"]
[White "Wortman, Rawi"]
[Black "Ten Kate, Gustav"]
[Result "1-0"]
[TimeControl "90min/40moves + 30min + 30sec/move"]
[WhiteElo "1668"]
[BlackElo "1815"]

1. e4 {[%clk 01:30:59]} {[%emt 00:26:25]} Nf6 {[%clk 01:30:58]} {[%emt
00:00:02]} 2. e5 {[%clk 01:31:17]} {[%emt 00:00:13]} Nd5 {[%clk 01:31:26]}
{[%emt 00:00:02]} 3. d4 {[%clk 01:31:25]} {[%emt 00:00:22]} d6 {[%clk
01:31:55]} 4. Nf3 {[%clk 01:30:41]} {[%emt 00:01:13]} Bg4 {[%clk 01:32:24]}
{[%emt 00:00:01]} 5. Be2 {[%clk 01:30:31]} {[%emt 00:00:40]} e6 {[%clk
01:32:52]} {[%emt 00:00:02]} 6. O-O {[%clk 01:29:54]} {[%emt 00:01:07]} Be7
{[%clk 01:33:21]} 7. exd6 {[%clk 01:29:48]} {[%emt 00:00:36]} cxd6 {[%clk
01:33:26]} {[%emt 00:00:25]} 8. h3 {[%clk 01:29:57]} {[%emt 00:00:21]} Bh5
{[%clk 01:33:34]} {[%emt 00:00:22]} 9. c4 {[%clk 01:29:09]} {[%emt 00:01:18]}
Nb6 {[%clk 01:33:41]} {[%emt 00:00:24]} 10. Nc3 {[%clk 01:29:03]} {[%emt
00:00:36]} d5 {[%clk 01:32:23]} {[%emt 00:01:47]} 11. cxd5 {[%clk 01:24:16]}
{[%emt 00:05:17]} exd5 {[%clk 01:30:45]} {[%emt 00:02:08]} 12. Bf4 {[%clk
01:21:38]} {[%emt 00:03:08]} O-O {[%clk 01:30:18]} {[%emt 00:00:56]} 13. Ne5
{[%emt 00:04:24]} Bxe2 {[%clk 01:29:21]} 14. Qxe2 {[%clk 01:19:13]} {[%emt
00:00:29]} Re8 {[%clk 01:27:33]} {[%emt 00:02:19]} 15. Qh5 {[%clk 01:16:41]}
{[%emt 00:03:02]} g6 {[%clk 01:24:12]} {[%emt 00:03:51]} 16. Qf3 {[%clk
01:16:36]} {[%emt 00:00:35]} Nc6 {[%clk 01:22:32]} {[%emt 00:02:10]} 17. Nxf7
{[%clk 01:12:06]} {[%emt 00:05:00]} Qd7 {[%clk 01:11:01]} {[%emt 00:12:00]} 18.
Nh6+ {[%clk 01:03:03]} {[%emt 00:09:33]} Kg7 {[%clk 01:05:29]} {[%emt
00:06:03]} 19. Ng4 {[%clk 01:02:24]} {[%emt 00:01:09]} Kg8 {[%clk 00:47:34]}
{[%emt 00:18:24]} 20. Ne5 {[%clk 00:49:38]} {[%emt 00:13:17]} Nxe5 {[%clk
00:45:51]} {[%emt 00:02:13]} 21. Bxe5 {[%clk 00:49:50]} {[%emt 00:00:18]} Rf8
{[%clk 00:44:49]} {[%emt 00:01:32]} 22. Qe2 {[%clk 00:47:34]} {[%emt 00:02:46]}
Bd6 {[%clk 00:41:09]} {[%emt 00:04:09]} 23. Qb5 {[%clk 00:42:09]} {[%emt
00:05:56]} Qxb5 {[%clk 00:39:43]} {[%emt 00:01:57]} 24. Nxb5 {[%clk 00:42:34]}
{[%emt 00:00:05]} Bxe5 {[%clk 00:39:55]} {[%emt 00:00:17]} 25. dxe5 {[%clk
00:42:55]} {[%emt 00:00:09]} Rae8 {[%clk 00:35:52]} {[%emt 00:04:32]} 26. f4
{[%clk 00:38:50]} {[%emt 00:04:35]} Nc4 {[%clk 00:30:17]} {[%emt 00:06:05]} 27.
Nc7 {[%clk 00:36:52]} {[%emt 00:02:29]} Re7 {[%clk 00:29:20]} {[%emt 00:01:27]}
28. Nxd5 {[%clk 00:36:37]} {[%emt 00:00:45]} Rd7 {[%clk 00:29:05]} {[%emt
00:00:44]} 29. Nf6+ {[%clk 00:36:32]} {[%emt 00:00:35]} Rxf6 {[%clk 00:29:00]}
{[%emt 00:00:35]} 30. exf6 {[%clk 00:36:57]} {[%emt 00:00:06]} Kf7 {[%clk
00:28:07]} {[%emt 00:01:23]} 31. Rad1 {[%clk 00:36:35]} {[%emt 00:00:52]} Rxd1
{[%clk 00:27:52]} {[%emt 00:00:44]} 32. Rxd1 {[%clk 00:37:00]} {[%emt
00:00:05]} Nxb2 {[%clk 00:28:07]} {[%emt 00:00:15]} 33. Rd7+ {[%clk 00:37:04]}
{[%emt 00:00:26]} Kxf6 {[%clk 00:28:28]} {[%emt 00:00:09]} 34. Rxb7 {[%clk
00:37:23]} {[%emt 00:00:12]} Nd3 {[%clk 00:28:36]} {[%emt 00:00:22]} 35. g3
{[%clk 00:37:16]} {[%emt 00:00:36]} a6 {[%clk 00:28:55]} {[%emt 00:00:10]} 36.
Rxh7 {[%clk 00:37:39]} {[%emt 00:00:08]} Nc5 {[%clk 00:29:01]} {[%emt
00:00:24]} 37. Rc7 {[%clk 00:37:51]} {[%emt 00:00:17]} Ne4 {[%clk 00:29:18]}
{[%emt 00:00:13]} 38. Rc6+ {[%clk 00:37:54]} {[%emt 00:00:27]} Kf5 {[%clk
00:29:39]} {[%emt 00:00:09]} 39. g4+ {[%clk 00:37:42]} {[%emt 00:00:42]} Kxf4
{[%clk 00:30:01]} {[%emt 00:00:08]} 40. Rxg6 {[%clk 00:38:05]} {[%emt
00:00:07]} Kg3 {[%clk 00:30:10]} {[%emt 00:00:21]} 41. Rxa6 {[%emt 00:01:36]}
Ng5 {[%clk 00:30:06]} 42. Rh6 {[%clk 00:37:29]} {[%emt 00:00:34]} Nf3+ {[%clk
00:29:55]} {[%emt 00:00:41]} 43. Kf1 {[%clk 00:37:50]} {[%emt 00:00:09]} Nd4
{[%clk 00:30:05]} {[%emt 00:00:20]} 44. g5 {[%clk 00:38:04]} {[%emt 00:00:16]}
Kf3 {[%clk 00:30:23]} {[%emt 00:00:12]} 45. Rf6+ {[%clk 00:38:13]} {[%emt
00:00:21]} Kg3 {[%clk 00:30:33]} {[%emt 00:00:20]} 46. g6 {[%clk 00:38:36]}
{[%emt 00:00:08]} Nc2 {[%clk 00:30:53]} {[%emt 00:00:10]} 47. g7 {[%clk
00:38:55]} {[%emt 00:00:11]} Ne3+ {[%clk 00:31:18]} {[%emt 00:00:05]} 48. Ke2
{[%clk 00:39:12]} {[%emt 00:00:13]} Kh2 {[%clk 00:31:11]} {[%emt 00:00:36]} 49.
Kxe3 {[%clk 00:39:32]} {[%emt 00:00:11]} Kh1 {[%clk 00:31:31]} {[%emt
00:00:09]} 50. g8=Q {[%clk 00:39:55]} {[%emt 00:00:07]} Kh2 {[%clk 00:31:35]}
{[%emt 00:00:26]} 51. Rf2+ {[%clk 00:40:22]} {[%emt 00:00:04]} Kxh3 {[%clk
00:31:51]} {[%emt 00:00:14]} 52. Rg2 {[%clk 00:40:41]} {[%emt 00:00:11]} 1-0

[Event "NJSK 2023 Jeugd C"]
[Site "Almelo, Netherlands"]
[Date "2023.05.04"]
[Round "7.12"]
[White "Roorda, Cas"]
[Black "Verwer, Oscar"]
[Result "1-0"]
[TimeControl "90min/40moves + 30min + 30sec/move"]
[WhiteElo "1769"]
[BlackElo "1549"]

1. e4 {[%clk 01:30:59]} c5 {[%clk 01:30:56]} {[%emt 00:00:04]} 2. Nf3 {[%clk
01:31:28]} {[%emt 00:00:01]} d6 {[%clk 01:31:21]} {[%emt 00:00:05]} 3. d4
{[%clk 01:31:57]} cxd4 {[%clk 01:31:42]} {[%emt 00:00:10]} 4. Nxd4 {[%clk
01:32:24]} {[%emt 00:00:03]} Nf6 {[%clk 01:32:03]} {[%emt 00:00:09]} 5. Nc3
{[%clk 01:32:53]} {[%emt 00:00:01]} a6 {[%clk 01:32:24]} {[%emt 00:00:09]} 6.
Bg5 {[%clk 01:33:19]} {[%emt 00:00:03]} e6 {[%clk 01:32:41]} {[%emt 00:00:12]}
7. f4 {[%clk 01:33:47]} {[%emt 00:00:03]} h6 {[%clk 01:32:56]} {[%emt
00:00:15]} 8. Bh4 {[%clk 01:34:13]} {[%emt 00:00:04]} Qb6 {[%clk 01:33:06]}
{[%emt 00:00:20]} 9. a3 {[%clk 01:34:34]} {[%emt 00:00:10]} e5 {[%clk
01:32:07]} {[%emt 00:01:28]} 10. Bxf6 {[%clk 01:18:22]} {[%emt 00:16:42]} gxf6
{[%clk 01:20:26]} {[%emt 00:12:11]} 11. Nde2 {[%clk 01:15:39]} {[%emt
00:03:13]} Nc6 {[%clk 01:06:50]} {[%emt 00:14:06]} 12. Nd5 {[%clk 01:15:08]}
{[%emt 00:01:02]} Qd8 {[%clk 01:07:04]} {[%emt 00:00:16]} 13. f5 {[%clk
01:14:52]} {[%emt 00:00:45]} b5 {[%clk 01:02:02]} {[%emt 00:05:32]} 14. Ng3
{[%clk 01:14:34]} {[%emt 00:00:48]} Bb7 {[%clk 00:54:28]} {[%emt 00:08:03]} 15.
Nh5 {[%clk 01:11:07]} {[%emt 00:03:58]} Be7 {[%clk 00:54:27]} {[%emt 00:00:31]}
16. c3 {[%clk 01:08:49]} {[%emt 00:02:49]} Na5 {[%clk 00:45:35]} {[%emt
00:09:22]} 17. b4 {[%clk 00:56:36]} {[%emt 00:12:42]} Qc8 {[%clk 00:37:44]}
{[%emt 00:08:21]} 18. bxa5 {[%clk 00:54:14]} {[%emt 00:02:53]} Bxd5 {[%clk
00:33:17]} {[%emt 00:04:56]} 19. Qxd5 {[%clk 00:54:15]} {[%emt 00:00:29]} Qxc3+
{[%clk 00:33:13]} {[%emt 00:00:34]} 20. Kf2 {[%clk 00:54:35]} {[%emt 00:00:10]}
Rc8 {[%clk 00:31:51]} {[%emt 00:01:52]} 21. Be2 {[%clk 00:53:58]} {[%emt
00:01:07]} Qxa5 {[%clk 00:30:57]} {[%emt 00:01:24]} 22. Rhc1 {[%clk 00:53:22]}
{[%emt 00:01:07]} Qb6+ {[%clk 00:26:05]} {[%emt 00:05:21]} 23. Kf1 {[%clk
00:53:19]} {[%emt 00:00:32]} Kd7 {[%clk 00:20:55]} {[%emt 00:05:39]} 24. Qxf7
{[%clk 00:52:20]} {[%emt 00:01:30]} 1-0

[Event "NJSK 2023 Jeugd C"]
[Site "Almelo, Netherlands"]
[Date "2023.05.04"]
[Round "7.13"]
[White "Klein Tuente, Sam"]
[Black "Rooijakkers, Liam"]
[Result "1-0"]
[TimeControl "90min/40moves + 30min + 30sec/move"]
[WhiteElo "1478"]
[BlackElo "1322"]

1. e4 {[%clk 01:30:58]} {[%emt 00:00:02]} d6 {[%clk 01:30:51]} {[%emt
00:00:10]} 2. d4 {[%clk 01:31:20]} {[%emt 00:00:07]} Nf6 {[%clk 01:30:40]}
{[%emt 00:00:41]} 3. Nc3 {[%clk 01:31:29]} {[%emt 00:00:20]} Nbd7 {[%clk
01:31:06]} {[%emt 00:00:04]} 4. Be3 {[%clk 01:31:27]} {[%emt 00:00:31]} e5
{[%clk 01:31:27]} {[%emt 00:00:10]} 5. Nf3 {[%clk 01:30:52]} {[%emt 00:01:05]}
h6 {[%clk 01:31:11]} {[%emt 00:00:45]} 6. Bc4 {[%clk 01:28:36]} {[%emt
00:02:46]} c6 {[%clk 01:31:36]} {[%emt 00:00:06]} 7. dxe5 {[%clk 01:27:45]}
{[%emt 00:01:21]} dxe5 {[%clk 01:31:52]} {[%emt 00:00:14]} 8. a3 {[%clk
01:26:04]} {[%emt 00:02:11]} Qc7 {[%clk 01:31:17]} {[%emt 00:01:04]} 9. h3
{[%clk 01:25:50]} {[%emt 00:00:45]} Be7 {[%clk 01:31:30]} {[%emt 00:00:17]} 10.
Qd2 {[%clk 01:24:55]} {[%emt 00:01:25]} a6 {[%clk 01:31:34]} {[%emt 00:00:27]}
11. Rd1 {[%clk 01:22:34]} {[%emt 00:02:50]} Nf8 {[%clk 01:30:13]} {[%emt
00:01:50]} 12. g4 {[%clk 01:19:38]} {[%emt 00:03:26]} b5 {[%clk 01:27:59]}
{[%emt 00:02:44]} 13. Bb3 {[%clk 01:16:35]} {[%emt 00:03:32]} Bd7 {[%clk
01:26:54]} {[%emt 00:01:35]} 14. g5 {[%clk 01:15:31]} {[%emt 00:01:34]} Ng8
{[%clk 01:14:47]} {[%emt 00:12:38]} 15. Nd5 {[%clk 01:12:05]} {[%emt 00:03:57]}
cxd5 {[%clk 01:11:21]} {[%emt 00:03:56]} 16. Qxd5 {[%clk 01:12:27]} {[%emt
00:00:08]} Qb8 {[%clk 01:11:04]} {[%emt 00:00:46]} 17. Qxf7+ {[%clk 01:11:40]}
{[%emt 00:01:18]} Kd8 {[%clk 01:11:22]} {[%emt 00:00:12]} 18. Qxg7 {[%clk
01:11:34]} {[%emt 00:00:36]} Rh7 {[%clk 01:06:15]} {[%emt 00:05:37]} 19. Qxg8
{[%clk 01:11:41]} {[%emt 00:00:23]} 1-0